bitfinex/quotes_SOLUSD_20250318
["timestamp","ask_amount","ask_price","bid_price","bid_amount"]
[1742257339284,0.59,128.29,128.28,177.27754902]
[1742257342277,0.59,128.29,128.28,537.93296454]
[1742257343174,0.59,128.29,128.28,489.27754902]
[1742257343669,0.59,128.29,128.28,177.27754902]
[1742257343891,0.59,128.29,128.28,183.95754902]
[1742257349679,0.59,128.29,128.28,495.95754902]
[1742257350706,0.59,128.29,128.28,183.81538745]
[1742257350897,0.59,128.29,128.28,183.95754902]
[1742257356390,0.59,128.29,128.28,184.02054902]
[1742257360610,0.59,128.29,128.28,156.81264886]
[1742257362010,0.59,128.29,128.28,18.71264886]
[1742257362919,0.59,128.29,128.28,26.50804886]
[1742257365212,0.59,128.29,128.28,156.81264886]
[1742257368296,0.59,128.29,128.28,164.60804886]
[1742257370019,0.59,128.29,128.28,156.81264886]
[1742257371019,0.59,128.29,128.28,18.71264886]
[1742257372020,20.54865388,128.29,128.28,18.71264886]
[1742257372223,20.54865388,128.29,128.28,0.063]
[1742257372809,12.75385388,128.29,128.28,0.063]
[1742257373113,0.59,128.29,128.28,0.063]
[1742257374434,0.59,128.29,128.28,18.71264886]
[1742257382110,0.59,128.29,128.28,164.892372]
[1742257382328,0.59,128.29,128.28,177.05622588]
[1742257383122,0.59,128.29,128.28,164.892372]
[1742257384027,0.59,128.29,128.28,156.81264886]
[1742257385846,0.59,128.29,128.28,169.26082588]
[1742257388048,0.59,128.29,128.28,157.096972]
[1742257390258,0.59,128.29,128.28,169.26082588]
[1742257390623,0.59,128.29,128.28,157.096972]
[1742257391454,0.59,128.29,128.28,169.26082588]
[1742257391926,0.59,128.29,128.28,157.096972]
[1742257395238,0.59,128.29,128.28,156.81264886]
[1742257395833,8.3848,128.29,128.28,156.81264886]
[1742257397528,8.3848,128.29,128.28,18.71264886]
[1742257401357,20.54865388,128.29,128.28,0.063]
[1742257406362,69.2040694,128.29,128.28,0.0001]
[1742257412158,20.54865388,128.29,128.28,0.0001]
[1742257414861,75.8640694,128.29,128.28,0.0001]
[1742257416466,27.20865388,128.29,128.28,0.0001]
[1742257417258,75.8640694,128.29,128.28,0.0001]
[1742257418063,27.20865388,128.29,128.28,0.0001]
[1742257418664,20.54865388,128.29,128.28,0.0001]
[1742257421781,0.59,128.29,128.28,0.0001]
[1742257426153,8.3848,128.29,128.28,0.0001]
[1742257427372,0.59,128.29,128.28,0.0001]
[1742257429070,20.54865388,128.29,128.28,0.0001]
[1742257433075,69.2040694,128.29,128.28,0.0001]
[1742257435083,20.54865388,128.29,128.28,0.0001]
[1742257437783,69.2040694,128.29,128.28,0.0001]
[1742257438085,75.8640694,128.29,128.28,0.0001]
[1742257439171,27.20865388,128.29,128.28,0.0001]
[1742257440591,75.8640694,128.29,128.28,0.0001]
[1742257441266,20.0,128.26,128.24,0.063]
[1742257441466,12.16385388,128.25,128.24,0.063]
[1742257442493,28.84250016,128.25,128.24,0.0001]
[1742257442784,0.28432314,128.24,128.18,8.1814]
[1742257442976,12.16385388,128.2,128.18,8.1814]
[1742257445381,12.16385388,128.2,128.17,18.64964886]
[1742257449700,12.16385388,128.19,128.17,18.64964886]
[1742257450696,12.16385388,128.18,128.16,0.063]
[1742257451197,12.16385388,128.19,128.16,0.063]
[1742257451686,19.96475388,128.19,128.16,0.063]
[1742257452475,12.16385388,128.18,128.16,0.063]
[1742257452700,12.16385388,128.19,128.16,0.063]
[1742257457507,12.16385388,128.18,128.16,0.063]
[1742257458386,12.16385388,128.17,128.16,0.063]
[1742257459684,19.96595388,128.17,128.16,0.063]
[1742257460290,12.16385388,128.17,128.16,0.063]
[1742257461902,19.96595388,128.17,128.16,0.063]
[1742257462097,26.62595388,128.17,128.16,0.063]
[1742257462305,75.56569254,128.17,128.16,0.063]
[1742257462501,0.28432314,128.16,128.15,0.063]
[1742257462704,1.86972314,128.15,128.14,0.063]
[1742257462906,14.03357702,128.15,128.14,0.063]
[1742257463997,21.83687702,128.15,128.14,0.063]
[1742257464190,21.55255388,128.15,128.14,0.063]
[1742257464500,13.74925388,128.15,128.14,0.063]
[1742257464706,21.55255388,128.15,128.14,0.063]
[1742257465100,12.16385388,128.15,128.14,0.063]
[1742257465498,19.96715388,128.15,128.14,0.063]
[1742257469004,20.25147702,128.15,128.14,0.063]
[1742257469811,20.10931545,128.15,128.14,0.063]
[1742257470307,20.25147702,128.15,128.14,0.063]
[1742257470489,26.93147702,128.15,128.14,0.063]
[1742257475715,26.96147702,128.15,128.14,0.063]
[1742257478018,27.24580016,128.15,128.14,0.063]
[1742257480218,26.96147702,128.15,128.14,0.063]
[1742257483210,27.24580016,128.15,128.14,0.063]
[1742257484415,26.96147702,128.15,128.14,0.063]
[1742257495231,26.67715388,128.15,128.14,0.063]
[1742257495432,19.99715388,128.15,128.14,0.063]
[1742257498140,20.42363859,128.15,128.14,0.063]
[1742257500347,0.28432314,128.14,128.13,0.063]
[1742257500717,12.44817702,128.14,128.13,0.063]
[1742257502251,20.25207702,128.14,128.13,0.063]
[1742257503344,20.25207702,128.14,128.13,0.0001]
[1742257504429,20.14216157,128.12,128.11,0.0001]
[1742257504735,39.12817702,128.12,128.11,0.0001]
[1742257505949,48.95364678,128.12,128.11,0.0001]
[1742257506249,12.16385388,128.07,128.06,7.8088]
[1742257506455,19.97205388,128.07,128.06,7.8088]
[1742257507127,25.7974884,128.07,128.06,7.8088]
[1742257507335,17.9892884,128.07,128.06,7.8088]
[1742257508159,12.16385388,128.07,128.06,7.8088]
[1742257508731,19.97205388,128.07,128.06,7.8088]
[1742257509555,19.97205388,128.07,128.03,26.73164886]
[1742257509757,12.16385388,128.04,128.03,0.063]
[1742257510439,19.97385388,128.04,128.03,0.063]
[1742257511243,12.16385388,128.04,128.03,0.063]
[1742257513357,19.97385388,128.04,128.03,0.063]
[1742257515636,12.16385388,128.04,128.03,0.063]
[1742257518577,75.3092694,128.04,128.03,0.063]
[1742257518739,26.65385388,128.04,128.03,0.063]
[1742257519243,27.22250016,128.04,128.03,0.063]
[1742257519449,75.87791568,128.04,128.03,0.063]
[1742257523867,27.22250016,128.04,128.03,0.063]
[1742257524866,18.84385388,128.04,128.03,0.063]
[1742257525066,26.65385388,128.04,128.03,0.063]
[1742257531685,19.97385388,128.04,128.03,0.063]
[1742257531865,26.65385388,128.04,128.03,0.063]
[1742257532778,18.84385388,128.04,128.03,0.063]
[1742257532960,26.65385388,128.04,128.03,0.063]
[1742257539965,19.97385388,128.04,128.03,0.063]
[1742257540181,20.0,128.05,128.03,0.063]
[1742257540388,7.8071,128.09,128.04,8.2613]
[1742257540555,12.16385388,128.08,128.04,8.2613]
[1742257541008,12.16385388,128.07,128.04,8.2613]
[1742257541179,12.16385388,128.07,128.04,16.0711]
[1742257545091,12.16385388,128.07,128.05,18.64964886]
[1742257545290,12.16385388,128.08,128.05,26.45864886]
[1742257547092,12.16385388,128.07,128.05,26.45864886]
[1742257549866,12.16385388,128.07,128.05,18.64964886]
[1742257552503,12.16385388,128.07,128.05,26.45904886]
[1742257552693,12.16385388,128.08,128.05,26.45904886]
[1742257554179,12.16385388,128.08,128.05,18.64964886]
[1742257555206,12.16385388,128.08,128.05,26.45894886]
[1742257555608,12.16385388,128.08,128.05,18.64964886]
[1742257557180,19.97145388,128.08,128.05,18.64964886]
[1742257561095,12.16385388,128.08,128.05,18.64964886]
[1742257564702,19.97115388,128.09,128.05,18.64964886]
[1742257566206,12.16385388,128.09,128.05,26.45894886]
[1742257566401,12.16385388,128.1,128.05,26.45894886]
[1742257566608,20.0,128.1,128.07,18.64964886]
[1742257566805,0.03,128.12,128.08,7.8076]
[1742257567009,12.19385388,128.12,128.08,7.8076]
[1742257568893,19.99895388,128.12,128.07,38.62140274]
[1742257569206,12.16385388,128.11,128.07,18.64964886]
[1742257570299,12.16385388,128.11,128.07,26.45764886]
[1742257570895,19.96975388,128.11,128.07,18.64964886]
[1742257571709,19.96975388,128.11,128.07,26.45774886]
[1742257572010,12.16385388,128.11,128.07,26.45774886]
[1742257573308,19.96965388,128.11,128.07,26.45774886]
[1742257573518,19.96965388,128.11,128.07,18.64964886]
[1742257576108,12.16385388,128.1,128.07,18.64964886]
[1742257577321,12.16385388,128.1,128.07,7.808]
[1742257577506,12.16385388,128.11,128.07,26.45764886]
[1742257578012,19.99925388,128.12,128.08,18.64964886]
[1742257578196,12.19385388,128.12,128.08,18.64964886]
[1742257578813,12.16385388,128.11,128.08,18.64964886]
[1742257579896,12.16385388,128.11,128.08,26.45704886]
[1742257582909,12.16385388,128.11,128.08,18.64964886]
[1742257583219,12.16385388,128.1,128.07,7.8079]
[1742257583593,12.16385388,128.09,128.06,18.71264886]
[1742257583910,12.16385388,128.08,128.06,0.063]
[1742257584129,12.16385388,128.07,128.06,0.063]
[1742257584999,19.97205388,128.07,128.06,0.063]
[1742257588496,7.8082,128.07,128.06,0.063]
[1742257588694,19.97205388,128.07,128.06,0.063]
[1742257592097,12.16385388,128.07,128.06,0.063]
[1742257593224,12.16385388,128.08,128.06,0.063]
[1742257593810,12.16385388,128.07,128.06,0.063]
[1742257595097,19.97205388,128.07,128.06,0.063]
[1742257599127,20.54070016,128.07,128.06,0.063]
[1742257599313,0.56864628,128.06,128.05,0.063]
[1742257599514,68.04791568,128.06,128.05,0.063]
[1742257599914,19.39250016,128.06,128.05,0.063]
[1742257600115,19.39250016,128.06,128.05,0.0001]
[1742257600317,20.56864628,128.04,128.03,0.063]
[1742257600523,81.38791568,128.04,128.03,0.063]
[1742257601735,89.19791568,128.04,128.03,0.063]
[1742257604535,40.54250016,128.04,128.03,0.063]
[1742257605037,32.16385388,128.04,128.03,0.063]
[1742257606114,6.66,128.06,128.03,0.063]
[1742257606316,19.97195388,128.08,128.04,18.64964886]
[1742257606516,19.97195388,128.08,128.03,18.71264886]
[1742257606517,12.16385388,128.06,128.03,18.71264886]
[1742257607918,12.16385388,128.06,128.03,26.52314886]
[1742257609239,19.97285388,128.06,128.03,18.71264886]
[1742257609425,12.16385388,128.05,128.03,18.71264886]
[1742257610536,12.16385388,128.06,128.03,26.52314886]
[1742257610922,18.82385388,128.08,128.03,38.68700274]
[1742257611340,12.16385388,128.07,128.03,26.52314886]
[1742257616537,12.16385388,128.06,128.03,0.063]
[1742257619444,19.97275388,128.06,128.03,0.063]
[1742257619746,12.16385388,128.05,128.03,0.063]
[1742257622152,12.16385388,128.06,128.03,0.063]
[1742257623862,12.22685388,128.07,128.03,0.063]
[1742257624358,0.063,128.07,128.03,12.22685388]
[1742257625765,0.063,128.07,128.05,18.64964886]
[1742257626765,0.063,128.07,128.05,26.45884886]
[1742257627562,0.063,128.07,128.05,18.64964886]
[1742257627765,12.16385388,128.06,128.03,18.71264886]
[1742257627973,12.16385388,128.05,128.03,18.71264886]
[1742257630458,19.97285388,128.06,128.03,18.71264886]
[1742257635761,0.063,128.07,128.03,26.52324886]
[1742257635762,20.03525388,128.07,128.03,26.52324886]
[1742257637066,20.03525388,128.07,128.03,18.71264886]
[1742257637867,12.16385388,128.06,128.03,18.71264886]
[1742257638777,12.16385388,128.05,128.03,18.71264886]
[1742257638942,19.97335388,128.05,128.03,18.71264886]
[1742257641066,12.16385388,128.04,128.03,0.063]
[1742257642544,60.8192694,128.04,128.03,0.063]
[1742257642758,61.38791568,128.04,128.03,0.063]
[1742257642957,61.38791568,128.04,128.03,0.0001]
[1742257643155,69.19791568,128.04,128.03,0.0001]
[1742257643868,20.0,128.02,128.01,0.063]
[1742257644059,39.39250016,128.02,128.01,0.063]
[1742257644262,39.39250016,128.02,128.01,0.0001]
[1742257645654,47.20370016,128.02,128.01,0.0001]
[1742257649773,0.56864628,128.01,127.99,0.0001]
[1742257649950,12.73250016,128.0,127.99,0.0001]
[1742257650570,20.54500016,128.0,127.99,0.0001]
[1742257651365,32.16385388,127.97,127.96,0.063]
[1742257652772,39.97815388,127.97,127.96,0.063]
[1742257653564,32.16385388,127.97,127.96,0.063]
[1742257654161,20.0,127.97,127.96,0.063]
[1742257655375,32.16385388,127.97,127.96,0.063]
[1742257655881,39.97815388,127.97,127.96,0.063]
[1742257656280,32.16385388,127.97,127.96,0.063]
[1742257658574,20.0,127.97,127.96,0.063]
[1742257658963,12.16385388,127.98,127.96,0.063]
[1742257659381,20.0,127.97,127.96,0.063]
[1742257659685,18.82385388,127.99,127.96,0.063]
[1742257660673,12.16385388,127.99,127.96,0.063]
[1742257662693,12.16385388,128.01,127.97,18.64964886]
[1742257664493,12.16385388,128.0,127.96,18.71264886]
[1742257664708,19.97695388,127.99,127.96,18.71264886]
[1742257664904,12.16385388,127.99,127.96,18.71264886]
[1742257666310,12.16385388,128.0,127.96,7.8776]
[1742257666704,12.16385388,128.0,127.97,18.64964886]
[1742257667813,19.97635388,128.0,127.97,18.64964886]
[1742257670103,19.97635388,128.0,127.96,0.063]
[1742257670300,12.16385388,127.99,127.96,0.063]
[1742257670507,12.16385388,127.98,127.96,0.063]
[1742257670686,19.97755388,127.98,127.96,0.063]
[1742257672299,12.16385388,127.97,127.96,0.063]
[1742257676126,19.97815388,127.97,127.96,0.063]
[1742257678283,12.16385388,127.98,127.96,0.063]
[1742257678703,26.70015388,127.99,127.96,0.063]
[1742257679508,20.0,127.97,127.96,0.063]
[1742257679715,32.16385388,127.97,127.96,0.063]
[1742257680213,39.97815388,127.97,127.96,0.063]
[1742257685116,32.16385388,127.97,127.96,0.063]
[1742257685289,39.97815388,127.97,127.96,0.063]
[1742257692695,20.063,127.99,127.96,0.063]
[1742257692901,20.0,127.97,127.96,0.063]
[1742257695828,20.0,127.98,127.96,0.063]
[1742257697223,32.16385388,127.98,127.96,0.063]
[1742257697719,39.97755388,127.98,127.96,0.063]
[1742257698514,18.82385388,127.97,127.96,0.063]
[1742257699699,20.56864628,127.95,127.94,0.063]
[1742257699905,32.73250016,127.95,127.94,0.063]
[1742257701030,0.78432314,127.94,127.86,12.20424428]
[1742257701210,12.16385388,127.88,127.86,12.20424428]
[1742257701409,18.86385388,127.89,127.86,12.20424428]
[1742257701619,12.16385388,127.89,127.86,12.20424428]
[1742257701820,19.98355388,127.89,127.86,18.64964886]
[1742257702019,19.98355388,127.89,127.85,18.64964886]
[1742257702224,12.16385388,127.87,127.83,0.03]
[1742257702424,12.16385388,127.84,127.83,0.03]
[1742257704916,19.98605388,127.84,127.83,0.03]
[1742257705539,12.16385388,127.84,127.83,0.03]
[1742257708021,19.98605388,127.84,127.83,0.03]
[1742257708427,12.16385388,127.84,127.83,0.03]
[1742257709643,19.98605388,127.84,127.83,0.03]
[1742257709846,12.16385388,127.84,127.83,0.03]
[1742257710047,19.98605388,127.84,127.83,0.03]
[1742257710236,20.55470016,127.84,127.83,0.03]
[1742257710420,27.27470016,127.84,127.83,0.03]
[1742257711039,26.70605388,127.84,127.83,0.03]
[1742257711245,18.88385388,127.84,127.83,0.03]
[1742257713853,26.70605388,127.84,127.83,0.03]
[1742257715148,28.84080016,127.84,127.83,0.03]
[1742257715648,1.5661,127.84,127.83,0.03]
[1742257715849,26.74,127.84,127.83,0.03]
[1742257716046,38.90385388,127.84,127.83,0.03]
[1742257716426,32.16385388,127.84,127.83,0.03]
[1742257716620,32.16385388,127.84,127.81,0.03]
[1742257716621,0.56864628,127.83,127.81,0.03]
[1742257716853,39.98735388,127.82,127.81,0.03]
[1742257719426,20.0,127.8,127.79,0.03]
[1742257719638,26.82,127.8,127.79,0.03]
[1742257720325,38.98385388,127.8,127.79,0.03]
[1742257721255,46.80855388,127.8,127.79,0.03]
[1742257722036,96.03261568,127.8,127.79,0.03]
[1742257722241,47.37720016,127.8,127.79,0.03]
[1742257725156,2.15544628,127.79,127.77,0.03]
[1742257725340,12.16385388,127.78,127.77,0.03]
[1742257725658,12.73250016,127.78,127.77,0.03]
[1742257726346,19.00385388,127.79,127.77,0.03]
[1742257727550,26.82915388,127.79,127.77,0.03]
[1742257727750,19.00385388,127.79,127.77,0.03]
[1742257728429,26.82915388,127.79,127.77,0.03]
[1742257728625,19.00385388,127.79,127.77,0.03]
[1742257728848,12.16385388,127.78,127.77,0.03]
[1742257729633,20.55840016,127.78,127.77,0.03]
[1742257732039,20.0,127.74,127.7,0.03]
[1742257732249,19.04385388,127.73,127.7,0.03]
[1742257732553,12.16385388,127.73,127.7,0.03]
[1742257733526,12.16385388,127.72,127.7,0.03]
[1742257734653,6.88,127.74,127.7,0.03]
[1742257734654,32.30601545,127.71,127.7,0.03]
[1742257736350,34.24680016,127.71,127.7,0.03]
[1742257736548,42.07700016,127.71,127.7,0.03]
[1742257736858,0.56864628,127.7,127.66,0.03]
[1742257737057,12.30601545,127.67,127.66,0.03]
[1742257737267,19.33359621,127.67,127.66,0.03]
[1742257738548,20.14216157,127.67,127.66,0.03]
[1742257738746,39.33359621,127.67,127.66,0.03]
[1742257738949,39.33359621,127.67,127.62,6.8657]
[1742257739465,7.48864628,127.69,127.63,37.8410835]
[1742257739762,19.19143464,127.68,127.63,37.8410835]
[1742257740553,26.25359621,127.69,127.64,7.8345]
[1742257741667,19.19143464,127.68,127.64,7.8345]
[1742257742966,14.7298,127.72,127.67,18.64964886]
[1742257743182,26.09143464,127.72,127.67,18.64964886]
[1742257743487,19.19143464,127.71,127.67,18.64964886]
[1742257745156,19.19143464,127.71,127.67,26.48194886]
[1742257746673,39.19143464,127.73,127.67,45.6733835]
[1742257746855,39.19143464,127.73,127.69,18.64964886]
[1742257747055,39.19143464,127.73,127.67,27.02373464]
[1742257747256,19.19143464,127.72,127.68,18.64964886]
[1742257747785,39.19143464,127.73,127.69,7.8314]
[1742257748562,19.19143464,127.72,127.69,7.8314]
[1742257749677,19.25443464,127.72,127.69,7.8314]
[1742257756775,19.19143464,127.71,127.68,7.8318]
[1742257756977,19.19143464,127.71,127.67,26.48204886]
[1742257757275,12.27456675,127.71,127.67,26.48204886]
[1742257758369,12.27456675,127.7,127.67,26.48204886]
[1742257758708,12.27456675,127.71,127.67,26.48204886]
[1742257760084,12.33756675,127.72,127.67,26.48204886]
[1742257760857,12.27456675,127.71,127.67,26.48204886]
[1742257766170,7.8927,127.72,127.67,26.48204886]
[1742257766389,12.27456675,127.71,127.67,26.48204886]
[1742257768784,12.27456675,127.7,127.67,18.64964886]
[1742257768994,0.56864628,127.67,127.62,0.03]
[1742257769178,12.27456675,127.63,127.62,0.03]
[1742257770875,20.10966675,127.63,127.62,0.03]
[1742257771779,20.25182832,127.63,127.62,0.03]
[1742257772284,20.67831303,127.63,127.62,0.03]
[1742257772482,69.77658003,127.63,127.62,0.03]
[1742257773593,20.67831303,127.63,127.62,0.03]
[1742257774181,12.41672832,127.63,127.62,0.03]
[1742257774994,20.25182832,127.63,127.62,0.03]
[1742257776893,69.77658003,127.63,127.62,0.03]
[1742257777293,20.67831303,127.63,127.62,0.03]
[1742257778803,20.25182832,127.63,127.62,0.03]
[1742257779098,27.18432271,127.63,127.62,0.03]
[1742257781495,27.61080742,127.63,127.62,0.03]
[1742257782900,27.18432271,127.63,127.62,0.03]
[1742257785076,27.61080742,127.63,127.62,0.03]
[1742257789191,7.8339,127.65,127.62,0.03]
[1742257789385,19.20706114,127.66,127.63,18.64964886]
[1742257790507,7.06216157,127.68,127.63,18.64964886]
[1742257790694,19.20706114,127.66,127.63,18.64964886]
[1742257791017,19.20706114,127.66,127.63,26.48474886]
[1742257793919,19.20706114,127.66,127.63,18.64964886]
[1742257794523,19.20706114,127.65,127.62,6.4674]
[1742257794816,19.20706114,127.63,127.62,0.03]
[1742257795902,27.18432271,127.63,127.62,0.03]
[1742257796442,27.04216114,127.63,127.62,0.03]
[1742257796754,27.61080742,127.63,127.62,0.03]
[1742257801237,20.69620888,127.63,127.62,0.03]
[1742257802152,12.57678574,127.63,127.62,0.03]
[1742257802345,20.69620888,127.63,127.62,0.03]
[1742257804357,12.86110888,127.63,127.62,0.03]
[1742257804539,12.43462417,127.63,127.62,0.03]
[1742257805247,20.26972417,127.63,127.62,0.03]
[1742257806756,69.86605928,127.63,127.62,0.03]
[1742257807957,20.69620888,127.63,127.62,0.03]
[1742257809763,20.75920888,127.63,127.62,0.03]
[1742257811358,20.14216157,127.6,127.59,2.8216667]
[1742257811566,39.59894731,127.6,127.59,2.8216667]
[1742257811761,39.31462417,127.6,127.59,2.8216667]
[1742257811936,0.56864628,127.59,127.57,0.03]
[1742257812245,20.0,127.53,127.51,0.6]
[1742257812448,39.76110888,127.52,127.51,0.6]
[1742257812871,39.82110888,127.52,127.51,0.6]
[1742257813241,47.66300888,127.52,127.51,0.6]
[1742257813647,0.28432314,127.46,127.43,42.57746475]
[1742257813867,12.2924626,127.44,127.43,42.57746475]
[1742257815166,19.69158836,127.44,127.43,42.57746475]
[1742257815345,27.68054993,127.44,127.43,42.57746475]
[1742257815659,27.68054993,127.44,127.43,41.57746475]
[1742257815839,27.11190365,127.44,127.43,41.57746475]
[1742257816452,32.81746098,127.44,127.43,41.57746475]
[1742257818040,33.38610726,127.44,127.43,41.57746475]
[1742257818242,24.97066098,127.44,127.43,41.57746475]
[1742257818764,32.81746098,127.44,127.43,41.57746475]
[1742257818971,27.11190365,127.44,127.43,41.57746475]
[1742257820248,34.13190365,127.44,127.43,41.57746475]
[1742257820446,53.3970073,127.44,127.43,41.57746475]
[1742257821374,34.13190365,127.44,127.43,41.57746475]
[1742257821748,26.28510365,127.44,127.43,41.57746475]
[1742257822254,34.13190365,127.44,127.43,41.57746475]
[1742257822571,34.19490365,127.44,127.43,41.57746475]
[1742257822949,34.19490365,127.44,127.43,2.20196189]
[1742257825561,34.76354993,127.44,127.43,2.20196189]
[1742257825768,54.02865358,127.44,127.43,2.20196189]
[1742257825971,64.71022841,127.44,127.43,2.20196189]
[1742257827851,37.02967848,127.44,127.43,2.20196189]
[1742257828258,44.87647848,127.44,127.43,2.20196189]
[1742257828458,7.083,127.44,127.43,2.20196189]
[1742257828650,26.34810365,127.44,127.43,2.20196189]
[1742257828864,0.063,127.44,127.43,2.20196189]
[1742257829661,0.063,127.44,127.43,8.62946189]
[1742257832457,19.32810365,127.44,127.43,2.20196189]
[1742257833573,0.063,127.44,127.43,2.23196189]
[1742257833755,27.17490365,127.44,127.43,2.23196189]
[1742257834372,27.74354993,127.44,127.43,2.23196189]
[1742257834671,27.17490365,127.44,127.43,2.23196189]
[1742257835091,19.32810365,127.44,127.43,2.23196189]
[1742257835251,0.063,127.44,127.43,2.23196189]
[1742257835759,19.32810365,127.44,127.43,2.23196189]
[1742257837587,27.17490365,127.44,127.43,2.23196189]
[1742257842679,27.74354993,127.44,127.43,2.23196189]
[1742257842883,47.00865358,127.44,127.43,2.23196189]
[1742257843786,27.17490365,127.44,127.43,2.23196189]
[1742257844384,27.74354993,127.44,127.43,2.23196189]
[1742257845387,47.00865358,127.44,127.43,2.23196189]
[1742257845583,52.67680494,127.44,127.43,2.23196189]
[1742257846785,33.41170129,127.44,127.43,2.23196189]
[1742257847082,52.67680494,127.44,127.43,2.23196189]
[1742257850682,52.67680494,127.44,127.43,6.189e-05]
[1742257851189,75.81452294,127.44,127.43,6.189e-05]
[1742257851569,26.4801827,127.44,127.43,6.189e-05]
[1742257851779,75.81452294,127.44,127.43,6.189e-05]
[1742257851990,86.49609777,127.44,127.43,6.189e-05]
[1742257852693,12.33358506,127.39,127.36,6.6232]
[1742257852870,19.39358506,127.39,127.36,6.6232]
[1742257853593,27.24348506,127.39,127.36,6.6232]
[1742257855072,5.72021134,127.38,127.36,6.6232]
[1742257855794,12.33358506,127.37,127.33,2.7937339]
[1742257855968,12.33358506,127.34,127.33,2.7937339]
[1742257856175,19.39358506,127.34,127.33,2.7937339]
[1742257857200,5.72021134,127.36,127.33,2.7937339]
[1742257857489,26.36789556,127.34,127.33,2.7937339]
[1742257857694,34.22079556,127.34,127.33,2.8237339]
[1742257857899,59.79754874,127.34,127.33,2.8237339]
[1742257858196,59.79754874,127.34,127.25,19.28789556]
[1742257858197,33.42965318,127.34,127.25,19.28789556]
[1742257858498,19.28789556,127.31,127.28,8.1525]
[1742257858704,19.28789556,127.32,127.28,8.1525]
[1742257859386,12.84021134,127.33,127.3,5.6458344]
[1742257859387,19.28789556,127.31,127.3,5.6458344]
[1742257859585,19.28789556,127.32,127.3,5.6458344]
[1742257859791,7.16,127.32,127.3,5.6458344]
[1742257860091,5.72021134,127.31,127.3,5.6458344]
[1742257860680,19.28789556,127.37,127.3,32.78912996]
[1742257860883,26.44789556,127.37,127.32,19.28789556]
[1742257861198,7.16,127.37,127.33,19.28789556]
[1742257861592,7.18,127.39,127.34,19.28789556]
[1742257861796,5.74304012,127.36,127.35,7.8523]
[1742257862673,5.74304012,127.36,127.33,27.14119556]
[1742257863481,5.74304012,127.36,127.34,37.93754442]
[1742257863982,26.44789556,127.4,127.35,7.8523]
[1742257864901,26.44789556,127.4,127.35,27.14019556]
[1742257865101,5.7442147,127.39,127.35,27.14019556]
[1742257865398,5.7442147,127.39,127.38,19.28789556]
[1742257865590,5.7442147,127.39,127.38,25.39049556]
[1742257865785,5.7442147,127.39,127.38,45.70124442]
[1742257865999,5.7442147,127.39,127.38,53.55174442]
[1742257866304,1.47e-05,127.39,127.38,211.50828626]
[1742257866506,0.063,127.44,127.39,19.73054886]
[1742257866684,0.063,127.44,127.43,19.28789556]
[1742257867301,0.063,127.44,127.43,37.93754442]
[1742257867805,19.28789556,127.52,127.44,19.73054886]
[1742257867983,19.28789556,127.52,127.47,19.28789556]
[1742257868505,27.12979556,127.52,127.45,15.0062]
[1742257868692,19.28789556,127.48,127.44,27.57734886]
[1742257868881,19.28789556,127.48,127.44,19.73054886]
[1742257869501,19.28789556,127.48,127.44,1.0809]
[1742257870105,19.28789556,127.47,127.44,1.0809]
[1742257870716,27.13219556,127.48,127.44,1.0809]
[1742257871208,38.64309083,127.48,127.44,1.0809]
[1742257871417,38.64309083,127.48,127.43,25.05974886]
[1742257872389,30.79879083,127.44,127.4,6.4101]
[1742257872593,30.79879083,127.43,127.4,6.4101]
[1742257873001,30.79879083,127.44,127.4,6.4101]
[1742257873919,7.16,127.45,127.4,37.20889083]
[1742257874087,7.16,127.45,127.41,30.79879083]
[1742257874290,7.16,127.45,127.41,33.55559093]
[1742257874500,7.16,127.45,127.41,2.7568001]
[1742257874906,7.16,127.45,127.41,41.40409093]
[1742257875304,7.16,127.45,127.41,33.55559093]
[1742257875894,7.16,127.45,127.41,41.40389093]
[1742257876111,30.79879083,127.46,127.41,41.40389093]
[1742257877530,30.79879083,127.46,127.42,18.64964886]
[1742257878028,7.16,127.47,127.42,49.44843969]
[1742257878326,15.0051,127.47,127.42,18.64964886]